Organisation Name,Department where exp. Incurred,Service Category Label,Supplier (Beneficiary),Purpose of Expenditure,Procurement (Merchant) Category,Purchase Date,Settlement Date,Transaction Number,Net Amount (�)
Stockport MBC,Corporate and Support Services,Central Support Costs,FACEBK  7GQETMWLG2,Publicity and Promotion,Facilities & Management Services  ,31.08.2019,16.09.2019,GPC08190000001,327.87
Stockport MBC,Corporate and Support Services,Central Support Costs,FACEBK  VMC86NJLG2,Publicity and Promotion,Facilities & Management Services  ,23.08.2019,16.09.2019,GPC08190000002,600.00
Stockport MBC,Services to People,Childrens & Educational Services,TRAINLINE,Travelling Expenses,Human Resources Travel & Subsistence ,22.08.2019,16.09.2019,GPC08190000003,203.60
Stockport MBC,Services to People,Childrens & Educational Services,TRAINLINE.COM,Travelling Expenses,Human Resources Travel & Subsistence ,21.08.2019,16.09.2019,GPC08190000004,-79.60
Stockport MBC,Services to People,Childrens & Educational Services,TRAINLINE.COM,Travelling Expenses,Human Resources Travel & Subsistence ,20.08.2019,16.09.2019,GPC08190000005,106.35
Stockport MBC,Services to People,Childrens & Educational Services,TRAINLINE.COM,Travelling Expenses,Human Resources Travel & Subsistence ,16.08.2019,16.09.2019,GPC08190000006,93.60
Stockport MBC,Services to People,Childrens & Educational Services,TRAINLINE,Travelling Expenses,Human Resources Travel & Subsistence ,15.08.2019,16.09.2019,GPC08190000007,77.55
Stockport MBC,Services to People,Childrens & Educational Services,TRAINLINE.COM,Travelling Expenses,Human Resources Travel & Subsistence ,09.08.2019,16.09.2019,GPC08190000008,451.00
Stockport MBC,Services to People,Childrens & Educational Services,TRAINLINE.COM,Travelling Expenses,Human Resources Travel & Subsistence ,07.08.2019,16.09.2019,GPC08190000009,24.65
Stockport MBC,Services to People,Childrens & Educational Services,TRAINLINE,Travelling Expenses,Human Resources Travel & Subsistence ,07.08.2019,16.09.2019,GPC08190000010,24.65
Stockport MBC,Services to People,Childrens & Educational Services,TRAINLINE.COM,Travelling Expenses,Human Resources Travel & Subsistence ,06.08.2019,16.09.2019,GPC08190000011,87.90
Stockport MBC,Services to People,Childrens & Educational Services,TRAINLINE.COM,Travelling Expenses,Human Resources Travel & Subsistence ,05.08.2019,16.09.2019,GPC08190000012,182.00
Stockport MBC,Services to People,Childrens & Educational Services,AMAZON PRIME MH0YP0294,Publicity and Promotion,Arts & Leisure Services  ,10.08.2019,16.09.2019,GPC08190000013,7.99
Stockport MBC,Services to People,Childrens & Educational Services,AMAZON.CO.UK MH9X73DJ4,Furniture and Equipment,Furniture & Soft Furnishings  ,09.08.2019,16.09.2019,GPC08190000014,34.76
Stockport MBC,Services to People,Childrens & Educational Services,MFG,Fuel,Vehicle Management Fuel ,07.08.2019,16.09.2019,GPC08190000015,21.95
Stockport MBC,Services to People,Childrens & Educational Services,AMZNMKTPLACE AMAZON.CO,Furniture and Equipment,Environmental Services Technical Equipment ,01.08.2019,16.09.2019,GPC08190000016,16.09
Stockport MBC,Corporate and Support Services,Cultural & Related Services,CITY LOCK AND SAFE,Furniture and Equipment,Environmental Services Technical Equipment ,29.08.2019,16.09.2019,GPC08190000017,58.99
Stockport MBC,Corporate and Support Services,Cultural & Related Services,CITY LOCK AND SAFE,Furniture and Equipment,Environmental Services Technical Equipment ,19.08.2019,16.09.2019,GPC08190000018,74.00
Stockport MBC,Corporate and Support Services,Cultural & Related Services,CITY LOCK AND SAFE,Furniture and Equipment,Environmental Services Technical Equipment ,19.08.2019,16.09.2019,GPC08190000019,100.00
Stockport MBC,Services to People,Childrens & Educational Services,ADOBE  CREATIVE CLOUD,Office Expenses,Facilities & Management Services  ,01.09.2019,16.09.2019,GPC08190000020,70.80
Stockport MBC,Services to People,Childrens & Educational Services,GOOGLE  ADS8179771860,Office Expenses,Facilities & Management Services  ,28.08.2019,16.09.2019,GPC08190000021,500.00
Stockport MBC,Services to People,Childrens & Educational Services,EB  PRESERVATION VERSU,Staff Training,Human Resources  ,21.08.2019,16.09.2019,GPC08190000022,90.00
Stockport MBC,Services to People,Childrens & Educational Services,GOOGLE  ADS8179771860,Office Expenses,Facilities & Management Services  ,17.08.2019,16.09.2019,GPC08190000023,500.00
Stockport MBC,Services to People,Childrens & Educational Services,TRAINLINE,Travelling Expenses,Human Resources Travel & Subsistence ,14.08.2019,16.09.2019,GPC08190000024,269.20
Stockport MBC,Services to People,Childrens & Educational Services,GOOGLE  ADS8179771860,Office Expenses,Facilities & Management Services  ,07.08.2019,16.09.2019,GPC08190000025,500.00
Stockport MBC,Services to People,Childrens & Educational Services,NCP LIMITED,Travelling Expenses,Human Resources Travel & Subsistence ,01.08.2019,16.09.2019,GPC08190000026,14.00
Stockport MBC,Services to Place,Central Support Costs,STOCKPORT STN SST,Travelling Expenses,Human Resources Travel & Subsistence ,14.08.2019,16.09.2019,GPC08190000027,6.30
Stockport MBC,Services to Place,Central Support Costs,STOCKPORT STN SST,Travelling Expenses,Human Resources Travel & Subsistence ,13.08.2019,16.09.2019,GPC08190000028,6.30
Stockport MBC,Services to Place,Central Support Costs,SAINSBURYS SUPERMARKET,Catering Supplies,Catering Food & Beverages ,05.08.2019,16.09.2019,GPC08190000029,7.15
Stockport MBC,Services to Place,Central Support Costs,SAINSBURYS SUPERMARKET,Catering Supplies,Catering Food & Beverages ,02.08.2019,16.09.2019,GPC08190000030,20.75
Stockport MBC,Services to People,Childrens & Educational Services,AMAZON PRIME MH4L089W4,Furniture and Equipment,Furniture & Soft Furnishings  ,13.08.2019,16.09.2019,GPC08190000031,7.99
Stockport MBC,Corporate and Support Services,Corporate & Democratic Core,PAYPAL  THENESM,Furniture and Equipment,Environmental Services Technical Equipment ,15.08.2019,16.09.2019,GPC08190000032,27.99
Stockport MBC,Corporate and Support Services,Corporate & Democratic Core,AMZNMKTPLACE,Furniture and Equipment,Environmental Services Technical Equipment ,14.08.2019,16.09.2019,GPC08190000033,16.99
Stockport MBC,Corporate and Support Services,Corporate & Democratic Core,AMZNMKTPLACE,Expenses and Allowances,Catering  ,14.08.2019,16.09.2019,GPC08190000034,40.34
Stockport MBC,Corporate and Support Services,Corporate & Democratic Core,AMZNMKTPLACE,Furniture and Equipment,Environmental Services Technical Equipment ,14.08.2019,16.09.2019,GPC08190000035,16.99
Stockport MBC,Corporate and Support Services,Corporate & Democratic Core,AMZNMKTPLACE,Furniture and Equipment,Environmental Services Technical Equipment ,14.08.2019,16.09.2019,GPC08190000036,16.99
Stockport MBC,Corporate and Support Services,Corporate & Democratic Core,AMZNMKTPLACE,Furniture and Equipment,Environmental Services Technical Equipment ,14.08.2019,16.09.2019,GPC08190000037,16.99
Stockport MBC,Corporate and Support Services,Corporate & Democratic Core,AMZNMKTPLACE,Furniture and Equipment,Environmental Services Technical Equipment ,12.08.2019,16.09.2019,GPC08190000038,10.45
Stockport MBC,Corporate and Support Services,Cultural & Related Services,SAINSBURYS LOC6202,Catering Supplies,Catering Food & Beverages ,25.08.2019,16.09.2019,GPC08190000039,10.75
Stockport MBC,Services to People,Childrens & Educational Services,AMAZON PRIME MH5E12R54,Library Equipment,Education Library Books ,18.08.2019,16.09.2019,GPC08190000040,7.99
Stockport MBC,Corporate and Support Services,Planning Services,W M MORRISON STORE,Publicity and Promotion,Arts & Leisure Services  ,28.08.2019,16.09.2019,GPC08190000041,19.25
Stockport MBC,Corporate and Support Services,Planning Services,W M MORRISON STORE,Publicity and Promotion,Arts & Leisure Services  ,02.08.2019,16.09.2019,GPC08190000042,19.78
Stockport MBC,Services to People,Childrens & Educational Services,TRAINLINE.COM,Care Payments,Social Community Care Supplies & Services  ,28.08.2019,16.09.2019,GPC08190000043,111.40
Stockport MBC,Services to People,Childrens & Educational Services,PREMIER INN44010580,Care Payments,Social Community Care Supplies & Services  ,15.08.2019,16.09.2019,GPC08190000044,59.50
Stockport MBC,Services to People,Childrens & Educational Services,TRAINLINE.COM,Travelling Expenses,Human Resources Travel & Subsistence ,14.08.2019,16.09.2019,GPC08190000045,132.20
Stockport MBC,Services to People,Childrens & Educational Services,TRAINLINE.COM,Care Payments,Social Community Care Supplies & Services  ,12.08.2019,16.09.2019,GPC08190000046,-19.70
Stockport MBC,Services to People,Childrens & Educational Services,TRAINLINE.COM,Care Payments,Social Community Care Supplies & Services  ,07.08.2019,16.09.2019,GPC08190000047,43.20
Stockport MBC,Services to People,Childrens & Educational Services,TRAINLINE,Care Payments,Social Community Care Supplies & Services  ,07.08.2019,16.09.2019,GPC08190000048,87.00
Stockport MBC,Services to People,Childrens & Educational Services,FLYBE.COM MJ6TTA       0,Travelling Expenses,Human Resources Travel & Subsistence ,06.08.2019,16.09.2019,GPC08190000049,123.28
Stockport MBC,Services to People,Childrens & Educational Services,FLYBE.COM MI6ZV8       0,Travelling Expenses,Human Resources Travel & Subsistence ,06.08.2019,16.09.2019,GPC08190000050,181.42
Stockport MBC,Services to People,Childrens & Educational Services,TRAINLINE,Care Payments,Social Community Care Supplies & Services  ,07.08.2019,16.09.2019,GPC08190000051,-75.50
Stockport MBC,Services to People,Childrens & Educational Services,TRAINLINE.COM,Care Payments,Social Community Care Supplies & Services  ,06.08.2019,16.09.2019,GPC08190000052,30.45
Stockport MBC,Services to People,Childrens & Educational Services,PITCHUP 0STX9CTS,Care Payments,Social Community Care Supplies & Services  ,06.08.2019,16.09.2019,GPC08190000053,6.00
Stockport MBC,Services to People,Childrens & Educational Services,WWW.GRAFF-CITY.COM,Furniture and Equipment,Furniture & Soft Furnishings  ,06.08.2019,16.09.2019,GPC08190000054,139.99
Stockport MBC,Services to People,Childrens & Educational Services,HILTON,Expenses and Allowances,Human Resources Training & Conferences ,06.08.2019,16.09.2019,GPC08190000055,68.00
Stockport MBC,Services to People,Childrens & Educational Services,HILTON,Expenses and Allowances,Human Resources Training & Conferences ,06.08.2019,16.09.2019,GPC08190000056,68.00
Stockport MBC,Services to People,Childrens & Educational Services,HILTON,Expenses and Allowances,Human Resources Training & Conferences ,06.08.2019,16.09.2019,GPC08190000057,68.00
Stockport MBC,Services to People,Childrens & Educational Services,HILTON,Expenses and Allowances,Human Resources Training & Conferences ,06.08.2019,16.09.2019,GPC08190000058,68.00
Stockport MBC,Services to People,Childrens & Educational Services,HILTON,Expenses and Allowances,Human Resources Training & Conferences ,06.08.2019,16.09.2019,GPC08190000059,68.00
Stockport MBC,Services to People,Childrens & Educational Services,HILTON,Expenses and Allowances,Human Resources Training & Conferences ,06.08.2019,16.09.2019,GPC08190000060,68.00
Stockport MBC,Services to People,Childrens & Educational Services,HILTON,Expenses and Allowances,Human Resources Training & Conferences ,06.08.2019,16.09.2019,GPC08190000061,68.00
Stockport MBC,Services to People,Childrens & Educational Services,HILTON,Expenses and Allowances,Human Resources Training & Conferences ,06.08.2019,16.09.2019,GPC08190000062,68.00
Stockport MBC,Services to People,Childrens & Educational Services,TRAINLINE.COM,Travelling Expenses,Human Resources Travel & Subsistence ,05.08.2019,16.09.2019,GPC08190000063,138.70
Stockport MBC,Services to People,Childrens & Educational Services,TRAINLINE.COM,Travelling Expenses,Human Resources Travel & Subsistence ,05.08.2019,16.09.2019,GPC08190000064,138.70
Stockport MBC,Services to People,Childrens & Educational Services,TRAINLINE.COM,Travelling Expenses,Human Resources Travel & Subsistence ,05.08.2019,16.09.2019,GPC08190000065,138.70
Stockport MBC,Services to People,Childrens & Educational Services,TRAINLINE.COM,Travelling Expenses,Human Resources Travel & Subsistence ,05.08.2019,16.09.2019,GPC08190000066,"1,599.90"
Stockport MBC,Services to People,Childrens & Educational Services,TRAINLINE.COM,Expenses and Allowances,Human Resources Training & Conferences ,05.08.2019,16.09.2019,GPC08190000067,70.05
Stockport MBC,Services to People,Childrens & Educational Services,TRAINLINE,Travelling Expenses,Human Resources Travel & Subsistence ,05.08.2019,16.09.2019,GPC08190000068,138.70
Stockport MBC,Services to People,Childrens & Educational Services,TRAVELODGE GB0000,Expenses and Allowances,Human Resources Training & Conferences ,05.08.2019,16.09.2019,GPC08190000069,212.24
Stockport MBC,Services to People,Childrens & Educational Services,TRAINLINE,Care Payments,Social Community Care Supplies & Services  ,05.08.2019,16.09.2019,GPC08190000070,87.00
Stockport MBC,Services to People,Childrens & Educational Services,TRAINLINE.COM,Travelling Expenses,Human Resources Travel & Subsistence ,02.08.2019,16.09.2019,GPC08190000071,32.25
Stockport MBC,Services to People,Adult Social Care,HMCOURTS-SERVICE.G,Legal Fees,Legal Services  ,29.08.2019,16.09.2019,GPC08190000072,75.00
Stockport MBC,Services to People,Adult Social Care,HMCOURTS-SERVICE.G,Legal Fees,Legal Services  ,29.08.2019,16.09.2019,GPC08190000073,75.00
Stockport MBC,Services to People,Adult Social Care,HMCOURTS-SERVICE.G,Legal Fees,Legal Services  ,27.08.2019,16.09.2019,GPC08190000074,75.00
Stockport MBC,Services to People,Adult Social Care,HMCOURTS-SERVICE.G,Legal Fees,Legal Services  ,20.08.2019,16.09.2019,GPC08190000075,75.00
Stockport MBC,Services to People,Adult Social Care,HMCOURTS-SERVICE.G,Legal Fees,Legal Services  ,15.08.2019,16.09.2019,GPC08190000076,75.00
Stockport MBC,Corporate and Support Services,Central Support Costs,NATIONAL BACK EX,Fees and Charges,Financial Services  ,05.08.2019,16.09.2019,GPC08190000077,55.00
Stockport MBC,Services to People,Childrens & Educational Services,TRAVELODGE GB0000,Care Payments,Social Community Care Supplies & Services  ,30.08.2019,16.09.2019,GPC08190000078,172.25
Stockport MBC,Services to People,Childrens & Educational Services,PREMIER INN44017325,Care Payments,Social Community Care Supplies & Services  ,30.08.2019,16.09.2019,GPC08190000079,237.50
Stockport MBC,Services to People,Childrens & Educational Services,TRAINLINE.COM,Travelling Expenses,Human Resources Travel & Subsistence ,29.08.2019,16.09.2019,GPC08190000080,192.15
Stockport MBC,Services to People,Childrens & Educational Services,TRAINLINE.COM,Travelling Expenses,Human Resources Travel & Subsistence ,28.08.2019,16.09.2019,GPC08190000081,81.00
Stockport MBC,Services to People,Childrens & Educational Services,TRAINLINE.COM,Travelling Expenses,Human Resources Travel & Subsistence ,28.08.2019,16.09.2019,GPC08190000082,286.50
Stockport MBC,Corporate and Support Services,Central Support Costs,RS COMPONENTS,Furniture and Equipment,Furniture & Soft Furnishings  ,22.08.2019,16.09.2019,GPC08190000083,176.99
Stockport MBC,Services to People,Childrens & Educational Services,TRAINLINE.COM,Care Payments,Social Community Care Supplies & Services  ,22.08.2019,16.09.2019,GPC08190000084,37.20
Stockport MBC,Services to People,Childrens & Educational Services,EB  FROM CONSULTATION,Staff Training,Human Resources  ,22.08.2019,16.09.2019,GPC08190000085,525.00
Stockport MBC,Services to People,Childrens & Educational Services,COASTAL HOTELS NO LIMI,Care Payments,Social Community Care Supplies & Services  ,23.08.2019,16.09.2019,GPC08190000086,148.01
Stockport MBC,Services to People,Childrens & Educational Services,TRAINLINE.COM,Care Payments,Social Community Care Supplies & Services  ,23.08.2019,16.09.2019,GPC08190000087,210.50
Stockport MBC,Services to People,Childrens & Educational Services,COASTAL HOTELS NO LIMI,Care Payments,Social Community Care Supplies & Services  ,23.08.2019,16.09.2019,GPC08190000088,20.00
Stockport MBC,Services to People,Childrens & Educational Services,TRAINLINE.COM,Travelling Expenses,Human Resources Travel & Subsistence ,22.08.2019,16.09.2019,GPC08190000089,229.80
Stockport MBC,Services to People,Childrens & Educational Services,TRAVELODGE GB0000,Third party payments - Private/Voluntary Sector,Social Community Care Supplies & Services  ,22.08.2019,16.09.2019,GPC08190000090,67.08
Stockport MBC,Services to People,Childrens & Educational Services,TRAINLINE.COM,Travelling Expenses,Human Resources Travel & Subsistence ,20.08.2019,16.09.2019,GPC08190000091,200.30
Stockport MBC,Services to People,Childrens & Educational Services,TRAINLINE.COM,Care Payments,Social Community Care Supplies & Services  ,16.08.2019,16.09.2019,GPC08190000092,68.50
Stockport MBC,Services to People,Childrens & Educational Services,PREMIER INN44521365,Staff Training,Human Resources  ,16.08.2019,16.09.2019,GPC08190000093,193.34
Stockport MBC,Services to People,Childrens & Educational Services,TRAINLINE.COM,Staff Training,Human Resources  ,08.08.2019,16.09.2019,GPC08190000094,251.50
Stockport MBC,Services to People,Childrens & Educational Services,TRAVELODGE GB0000,Third party payments - Private/Voluntary Sector,Social Community Care Supplies & Services  ,08.08.2019,16.09.2019,GPC08190000095,316.80
Stockport MBC,Services to People,Childrens & Educational Services,JET2.COM  7980047371855,Care Payments,Social Community Care Supplies & Services  ,06.08.2019,16.09.2019,GPC08190000096,43.01
Stockport MBC,Services to People,Childrens & Educational Services,WWW.JET2. 0LS80047374626,Care Payments,Social Community Care Supplies & Services  ,06.08.2019,16.09.2019,GPC08190000097,76.00
Stockport MBC,Services to People,Childrens & Educational Services,EB  FROM CONSULTATION,Staff Training,Human Resources  ,12.08.2019,16.09.2019,GPC08190000098,175.00
Stockport MBC,Services to People,Childrens & Educational Services,TRAINLINE.COM,Care Payments,Social Community Care Supplies & Services  ,15.08.2019,16.09.2019,GPC08190000099,140.50
Stockport MBC,Services to People,Childrens & Educational Services,TRAINLINE.COM,Care Payments,Social Community Care Supplies & Services  ,15.08.2019,16.09.2019,GPC08190000100,87.00
Stockport MBC,Services to People,Childrens & Educational Services,TRAVELODGE GB0000,Third party payments - Private/Voluntary Sector,Social Community Care Supplies & Services  ,06.08.2019,16.09.2019,GPC08190000101,851.50
Stockport MBC,Services to People,Childrens & Educational Services,AMAZON.CO.UK,Furniture and Equipment,Environmental Services Technical Equipment ,01.09.2019,16.09.2019,GPC08190000102,-13.83
Stockport MBC,Services to People,Childrens & Educational Services,AMAZON.CO.UK MA8CV40U4,Furniture and Equipment,Environmental Services Technical Equipment ,01.09.2019,16.09.2019,GPC08190000103,13.83
Stockport MBC,Services to People,Childrens & Educational Services,AMAZON MUSIC MA9B09TL4,Library Equipment,Education Library Books ,29.08.2019,16.09.2019,GPC08190000104,3.99
Stockport MBC,Services to People,Childrens & Educational Services,WWW.TAMESIDESPORTSTRUS,Care Payments,Social Community Care Supplies & Services  ,27.08.2019,16.09.2019,GPC08190000105,20.00
Stockport MBC,Services to People,Childrens & Educational Services,B & Q 1237,Furniture and Equipment,Environmental Services Technical Equipment ,27.08.2019,16.09.2019,GPC08190000106,107.47
Stockport MBC,Services to People,Childrens & Educational Services,B & Q 1237,Furniture and Equipment,Environmental Services Technical Equipment ,27.08.2019,16.09.2019,GPC08190000107,153.00
Stockport MBC,Services to People,Childrens & Educational Services,WWW.ARGOS.CO.UK,Furniture and Equipment,Environmental Services Technical Equipment ,26.08.2019,16.09.2019,GPC08190000108,152.95
Stockport MBC,Services to People,Childrens & Educational Services,AMZNMKTPLACE AMAZON.CO,Furniture and Equipment,Environmental Services Technical Equipment ,25.08.2019,16.09.2019,GPC08190000109,-7.28
Stockport MBC,Services to People,Childrens & Educational Services,AMZNMKTPLACE,Furniture and Equipment,Environmental Services Technical Equipment ,26.08.2019,16.09.2019,GPC08190000110,49.28
Stockport MBC,Services to People,Childrens & Educational Services,AMZNMKTPLACE,Furniture and Equipment,Environmental Services Technical Equipment ,26.08.2019,16.09.2019,GPC08190000111,265.99
Stockport MBC,Services to People,Childrens & Educational Services,AMZNMKTPLACE AMAZON.CO,Furniture and Equipment,Environmental Services Technical Equipment ,25.08.2019,16.09.2019,GPC08190000112,7.28
Stockport MBC,Services to People,Childrens & Educational Services,SHELL STOCKPORT,Fuel,Vehicle Management Fuel ,26.08.2019,16.09.2019,GPC08190000113,33.99
Stockport MBC,Services to People,Childrens & Educational Services,WWW.MOVIESCAPE.CO.UK,Publicity and Promotion,Arts & Leisure Services  ,24.08.2019,16.09.2019,GPC08190000114,40.00
Stockport MBC,Services to People,Childrens & Educational Services,TRAINLINE.COM,Publicity and Promotion,Arts & Leisure Services  ,25.08.2019,16.09.2019,GPC08190000115,60.60
Stockport MBC,Services to People,Childrens & Educational Services,TESCO STORES 5128,Catering Supplies,Catering Food & Beverages ,23.08.2019,16.09.2019,GPC08190000116,264.92
Stockport MBC,Services to People,Childrens & Educational Services,WWW.GROUPON.CO.UK,Publicity and Promotion,Arts & Leisure Services  ,23.08.2019,16.09.2019,GPC08190000117,39.00
Stockport MBC,Services to People,Childrens & Educational Services,SQ  KNOWLEDGE IS POWER,Furniture and Equipment,Furniture & Soft Furnishings  ,21.08.2019,16.09.2019,GPC08190000118,299.00
Stockport MBC,Services to People,Childrens & Educational Services,AMZNMKTPLACE AMAZON.CO,Furniture and Equipment,Environmental Services Technical Equipment ,19.08.2019,16.09.2019,GPC08190000119,239.70
Stockport MBC,Services to People,Childrens & Educational Services,AMAZON.CO.UK MH9M54RI4,Furniture and Equipment,Environmental Services Technical Equipment ,16.08.2019,16.09.2019,GPC08190000120,36.57
Stockport MBC,Services to People,Childrens & Educational Services,AMAZON.CO.UK MH1MF6RI4,Furniture and Equipment,Environmental Services Technical Equipment ,16.08.2019,16.09.2019,GPC08190000121,36.57
Stockport MBC,Services to People,Childrens & Educational Services,AMAZON.CO.UK MH4J71IS4,Furniture and Equipment,Environmental Services Technical Equipment ,16.08.2019,16.09.2019,GPC08190000122,287.88
Stockport MBC,Services to People,Childrens & Educational Services,AMAZON.CO.UK MH8M76R34,Furniture and Equipment,Environmental Services Technical Equipment ,16.08.2019,16.09.2019,GPC08190000123,36.57
Stockport MBC,Services to People,Childrens & Educational Services,AMAZON.CO.UK MH35K4RV4,Furniture and Equipment,Environmental Services Technical Equipment ,16.08.2019,16.09.2019,GPC08190000124,62.58
Stockport MBC,Services to People,Childrens & Educational Services,AMAZON.CO.UK MH37P2RX4,Furniture and Equipment,Environmental Services Technical Equipment ,16.08.2019,16.09.2019,GPC08190000125,62.58
Stockport MBC,Services to People,Childrens & Educational Services,AMAZON.CO.UK MH3710R84,Furniture and Equipment,Environmental Services Technical Equipment ,16.08.2019,16.09.2019,GPC08190000126,58.31
Stockport MBC,Services to People,Childrens & Educational Services,AMAZON.CO.UK MH7OP4R64,Furniture and Equipment,Environmental Services Technical Equipment ,16.08.2019,16.09.2019,GPC08190000127,138.98
Stockport MBC,Services to People,Childrens & Educational Services,AMAZON.CO.UK MH77A2RR4,Furniture and Equipment,Environmental Services Technical Equipment ,16.08.2019,16.09.2019,GPC08190000128,76.40
Stockport MBC,Services to People,Childrens & Educational Services,PRIME VIDEO MH4729RZ4,Library Equipment,Education Library Books ,16.08.2019,16.09.2019,GPC08190000129,4.99
Stockport MBC,Services to People,Childrens & Educational Services,J PIMLOTTS,Catering Supplies,Catering Food & Beverages ,16.08.2019,16.09.2019,GPC08190000130,42.32
Stockport MBC,Services to People,Childrens & Educational Services,ARGOS CHEADLE INSI,Furniture and Equipment,Environmental Services Technical Equipment ,16.08.2019,16.09.2019,GPC08190000131,305.00
Stockport MBC,Services to People,Childrens & Educational Services,JUST EAT,Catering Supplies,Catering Food & Beverages ,17.08.2019,16.09.2019,GPC08190000132,43.60
Stockport MBC,Services to People,Childrens & Educational Services,AMAZON.CO.UK MH8L58WB4,Furniture and Equipment,Environmental Services Technical Equipment ,18.08.2019,16.09.2019,GPC08190000133,124.48
Stockport MBC,Services to People,Childrens & Educational Services,AMZNMKTPLACE AMAZON.CO,Furniture and Equipment,Environmental Services Technical Equipment ,16.08.2019,16.09.2019,GPC08190000134,85.99
Stockport MBC,Services to People,Childrens & Educational Services,AMZNMKTPLACE AMAZON.CO,Furniture and Equipment,Environmental Services Technical Equipment ,18.08.2019,16.09.2019,GPC08190000135,329.00
Stockport MBC,Services to People,Childrens & Educational Services,MCDONALDS,Catering Supplies,Catering Food & Beverages ,14.08.2019,16.09.2019,GPC08190000136,8.36
Stockport MBC,Services to People,Childrens & Educational Services,ARGOS CHEADLE INSI,Care Payments,Social Community Care Supplies & Services  ,14.08.2019,16.09.2019,GPC08190000137,129.99
Stockport MBC,Services to People,Childrens & Educational Services,BRIDGE LANE NEWS,Care Payments,Social Community Care Supplies & Services  ,13.08.2019,16.09.2019,GPC08190000138,9.29
Stockport MBC,Services to People,Childrens & Educational Services,AMZNMKTPLACE,Furniture and Equipment,Environmental Services Technical Equipment ,02.08.2019,16.09.2019,GPC08190000139,299.90
Stockport MBC,Services to People,Childrens & Educational Services,JUST EAT,Catering Supplies,Catering Food & Beverages ,04.08.2019,16.09.2019,GPC08190000140,58.80
Stockport MBC,Corporate and Support Services,Cultural & Related Services,SAINSBURYS LOC6202,Catering Supplies,Catering Food & Beverages ,22.08.2019,16.09.2019,GPC08190000141,16.90
Stockport MBC,Corporate and Support Services,Cultural & Related Services,SAINSBURYS SACAT 2054,Expenses and Allowances,Catering  ,17.08.2019,16.09.2019,GPC08190000142,4.00
Stockport MBC,Services to People,Adult Social Care,STOCKPORT NHS FOUNDATI,Travelling Expenses,Human Resources Travel & Subsistence ,30.08.2019,16.09.2019,GPC08190000143,5.50
Stockport MBC,Services to People,Adult Social Care,STOCKPORT NHS FOUNDATI,Travelling Expenses,Human Resources Travel & Subsistence ,27.08.2019,16.09.2019,GPC08190000144,3.50
Stockport MBC,Services to People,Adult Social Care,STOCKPORT NHS FOUNDATI,Travelling Expenses,Human Resources Travel & Subsistence ,22.08.2019,16.09.2019,GPC08190000145,5.50
Stockport MBC,Services to People,Childrens & Educational Services,AMZNMKTPLACE,Furniture and Equipment,Environmental Services Technical Equipment ,30.08.2019,16.09.2019,GPC08190000146,7.49
Stockport MBC,Services to People,Childrens & Educational Services,AMZNMKTPLACE,Furniture and Equipment,Environmental Services Technical Equipment ,28.08.2019,16.09.2019,GPC08190000147,19.99
Stockport MBC,Services to People,Childrens & Educational Services,AMZ CHARLES WATSON (IR,Furniture and Equipment,Environmental Services Technical Equipment ,27.08.2019,16.09.2019,GPC08190000148,-34.12
Stockport MBC,Services to People,Childrens & Educational Services,WILKO STOCKPORT,Furniture and Equipment,Environmental Services Technical Equipment ,25.08.2019,16.09.2019,GPC08190000149,18.60
Stockport MBC,Services to People,Childrens & Educational Services,WILKO STOCKPORT,Furniture and Equipment,Environmental Services Technical Equipment ,24.08.2019,16.09.2019,GPC08190000150,9.75
Stockport MBC,Services to People,Childrens & Educational Services,B & Q 1279,Furniture and Equipment,Environmental Services Technical Equipment ,24.08.2019,16.09.2019,GPC08190000151,76.88
Stockport MBC,Services to People,Childrens & Educational Services,HOBBYCRAFT,Furniture and Equipment,Environmental Services Technical Equipment ,25.08.2019,16.09.2019,GPC08190000152,4.00
Stockport MBC,Services to People,Childrens & Educational Services,HOBBYCRAFT,Furniture and Equipment,Environmental Services Technical Equipment ,24.08.2019,16.09.2019,GPC08190000153,20.12
Stockport MBC,Services to People,Childrens & Educational Services,B & Q 1279,Furniture and Equipment,Environmental Services Technical Equipment ,23.08.2019,16.09.2019,GPC08190000154,61.44
Stockport MBC,Services to People,Childrens & Educational Services,AMAZON PRIME MA4B84FQ4,Furniture and Equipment,Environmental Services Technical Equipment ,22.08.2019,16.09.2019,GPC08190000155,7.99
Stockport MBC,Services to People,Childrens & Educational Services,AMZNMKTPLACE,Furniture and Equipment,Environmental Services Technical Equipment ,21.08.2019,16.09.2019,GPC08190000156,26.97
Stockport MBC,Services to People,Childrens & Educational Services,AMZNMKTPLACE,Furniture and Equipment,Environmental Services Technical Equipment ,20.08.2019,16.09.2019,GPC08190000157,54.82
Stockport MBC,Services to People,Childrens & Educational Services,AMZNMKTPLACE AMAZON.CO,Furniture and Equipment,Environmental Services Technical Equipment ,13.08.2019,16.09.2019,GPC08190000158,32.99
Stockport MBC,Services to People,Childrens & Educational Services,AMZNMKTPLACE,Furniture and Equipment,Environmental Services Technical Equipment ,14.08.2019,16.09.2019,GPC08190000159,19.99
Stockport MBC,Services to People,Childrens & Educational Services,AMAZON.CO.UK MH6MV15J4,Furniture and Equipment,Environmental Services Technical Equipment ,02.08.2019,16.09.2019,GPC08190000160,9.96
Stockport MBC,Services to People,Childrens & Educational Services,HI COLCHESTER RECE,Expenses and Allowances,Catering  ,24.08.2019,16.09.2019,GPC08190000161,115.00
Stockport MBC,Services to People,Childrens & Educational Services,TRAVELODGE GB0000,Expenses and Allowances,Catering  ,20.08.2019,16.09.2019,GPC08190000162,458.25
Stockport MBC,Services to People,Childrens & Educational Services,TRAVELODGE GB0000,Expenses and Allowances,Catering  ,20.08.2019,16.09.2019,GPC08190000163,480.25
Stockport MBC,Services to People,Childrens & Educational Services,TRAINLINE.COM,Travelling Expenses,Human Resources Travel & Subsistence ,15.08.2019,16.09.2019,GPC08190000164,250.80
Stockport MBC,Services to People,Childrens & Educational Services,TRAVELODGE GB0000,Third party payments - Private/Voluntary Sector,Social Community Care Supplies & Services  ,15.08.2019,16.09.2019,GPC08190000165,59.99
Stockport MBC,Corporate and Support Services,Planning Services,METRO TAXIS LIMITED,Publicity and Promotion,Arts & Leisure Services  ,22.08.2019,16.09.2019,GPC08190000166,4.69
Stockport MBC,Corporate and Support Services,Planning Services,METRO TAXIS LIMITED,Publicity and Promotion,Arts & Leisure Services  ,22.08.2019,16.09.2019,GPC08190000167,5.15
Stockport MBC,Corporate and Support Services,Central Support Costs,GOOGLE  CLOUD_006788-6,Information and Communications Technology,Information Communication Technology  ,30.08.2019,16.09.2019,GPC08190000168,0.03
Stockport MBC,Corporate and Support Services,Central Support Costs,FASTHOSTS INTERNET,Information and Communications Technology,Information Communication Technology  ,29.08.2019,16.09.2019,GPC08190000169,41.74
Stockport MBC,Corporate and Support Services,Central Support Costs,GITHUB.COM,Information and Communications Technology,Information Communication Technology  ,28.08.2019,16.09.2019,GPC08190000170,173.57
Stockport MBC,Corporate and Support Services,Central Support Costs,FASTHOSTS INTERNET,Information and Communications Technology,Information Communication Technology  ,28.08.2019,16.09.2019,GPC08190000171,263.80
Stockport MBC,Corporate and Support Services,Central Support Costs,FASTHOSTS INTERNET,Information and Communications Technology,Information Communication Technology  ,25.08.2019,16.09.2019,GPC08190000172,8.19
Stockport MBC,Corporate and Support Services,Central Support Costs,AMZNMKTPLACE,Furniture and Equipment,Environmental Services Technical Equipment ,15.08.2019,16.09.2019,GPC08190000173,2.02
Stockport MBC,Corporate and Support Services,Central Support Costs,AMAZON.CO.UK MH4JC7IP4,Furniture and Equipment,Environmental Services Technical Equipment ,16.08.2019,16.09.2019,GPC08190000174,54.71
Stockport MBC,Corporate and Support Services,Central Support Costs,AMZNMKTPLACE,Furniture and Equipment,Environmental Services Technical Equipment ,14.08.2019,16.09.2019,GPC08190000175,2.79
Stockport MBC,Corporate and Support Services,Central Support Costs,AMZNMKTPLACE,Furniture and Equipment,Environmental Services Technical Equipment ,14.08.2019,16.09.2019,GPC08190000176,2.67
Stockport MBC,Corporate and Support Services,Central Support Costs,AMZNMKTPLACE,Furniture and Equipment,Environmental Services Technical Equipment ,15.08.2019,16.09.2019,GPC08190000177,29.79
Stockport MBC,Corporate and Support Services,Central Support Costs,AUTH0.COM,Furniture and Equipment,Environmental Services Technical Equipment ,13.08.2019,16.09.2019,GPC08190000178,10.26
Stockport MBC,Corporate and Support Services,Central Support Costs,WWW.CONTENTFUL.COM,Furniture and Equipment,Environmental Services Technical Equipment ,10.08.2019,16.09.2019,GPC08190000179,810.22
Stockport MBC,Corporate and Support Services,Central Support Costs,TFGM,Travelling Expenses,Human Resources Travel & Subsistence ,08.08.2019,16.09.2019,GPC08190000180,6.00
Stockport MBC,Corporate and Support Services,Central Support Costs,AUTH0.COM,Information and Communications Technology,Information Communication Technology  ,05.08.2019,16.09.2019,GPC08190000181,170.12
Stockport MBC,Corporate and Support Services,Central Support Costs,FASTHOSTS INTERNET,Information and Communications Technology,Information Communication Technology  ,05.08.2019,16.09.2019,GPC08190000182,16.58
Stockport MBC,Corporate and Support Services,Central Support Costs,AWS EMEA,Information and Communications Technology,Information Communication Technology  ,03.08.2019,16.09.2019,GPC08190000183,866.79
Stockport MBC,Corporate and Support Services,Cultural & Related Services,ASIAN VOICE AND GUJARA,Library Equipment,Education Library Books ,22.08.2019,16.09.2019,GPC08190000184,36.50
Stockport MBC,Corporate and Support Services,Cultural & Related Services,AMZNMKTPLACE,Library Equipment,Education Library Books ,06.08.2019,16.09.2019,GPC08190000185,17.40
Stockport MBC,Services to People,Childrens & Educational Services,STOCKPORT STN SST,Travelling Expenses,Human Resources Travel & Subsistence ,15.08.2019,16.09.2019,GPC08190000186,6.30
Stockport MBC,Services to People,Childrens & Educational Services,STOCKPORT COUNCIL PARK,Travelling Expenses,Human Resources Travel & Subsistence ,15.08.2019,16.09.2019,GPC08190000187,0.40
Stockport MBC,Services to People,Childrens & Educational Services,AMAZON.CO.UK MH9E94654,Library Equipment,Education Library Books ,08.08.2019,16.09.2019,GPC08190000188,20.58
Stockport MBC,Corporate and Support Services,Central Support Costs,REPLACEBASE,Furniture and Equipment,Environmental Services Technical Equipment ,28.08.2019,16.09.2019,GPC08190000189,31.71
Stockport MBC,Corporate and Support Services,Central Support Costs,TOOLFIX SUPPLIES,Furniture and Equipment,Environmental Services Technical Equipment ,20.08.2019,16.09.2019,GPC08190000190,71.09
Stockport MBC,Services to Place,Highways & Transport Services,TRAINLINE.COM,Travelling Expenses,Human Resources Travel & Subsistence ,28.08.2019,16.09.2019,GPC08190000191,6.75
Stockport MBC,Corporate and Support Services,Central Support Costs,TRAINLINE.COM,Travelling Expenses,Human Resources Travel & Subsistence ,19.08.2019,16.09.2019,GPC08190000192,91.10
Stockport MBC,Corporate and Support Services,Corporate & Democratic Core,TRAINLINE,Travelling Expenses,Human Resources Travel & Subsistence ,16.08.2019,16.09.2019,GPC08190000193,351.50
Stockport MBC,Services to Place,Environmental & Regulatory Services,TFL VISITOR SHOP,Travelling Expenses,Human Resources Travel & Subsistence ,15.08.2019,16.09.2019,GPC08190000194,16.00
Stockport MBC,Services to Place,Highways & Transport Services,TRAINLINE.COM,Travelling Expenses,Human Resources Travel & Subsistence ,15.08.2019,16.09.2019,GPC08190000195,444.50
Stockport MBC,Corporate and Support Services,Corporate & Democratic Core,TRAINLINE,Travelling Expenses,Human Resources Travel & Subsistence ,08.08.2019,16.09.2019,GPC08190000196,-340.00
Stockport MBC,Corporate and Support Services,Cultural & Related Services,TWIA (23 EVENTS LTD),Office Expenses,Facilities & Management Services  ,28.08.2019,16.09.2019,GPC08190000197,90.00
Stockport MBC,Corporate and Support Services,Cultural & Related Services,TWIA (23 EVENTS LTD),Office Expenses,Facilities & Management Services  ,28.08.2019,16.09.2019,GPC08190000198,90.00
Stockport MBC,Corporate and Support Services,Cultural & Related Services,TWIA (23 EVENTS LTD),Office Expenses,Facilities & Management Services  ,28.08.2019,16.09.2019,GPC08190000199,90.00
